Cogmind - Beta 16 @@@ ROGUE MODE // 2025.11.07 @ 09:26:13 Player: souux Result: Core destroyed Performance ------------- Evolutions (0) 0 Regions Visited (2) 400 Robots Destroyed (33) 165 Value Destroyed (595) 595 Prototype IDs (2) 40 Alien Tech Used (0) 0 Bonus (0) 0 TOTAL SCORE: 1200 Bonus ------- None Cogmind --------- Core Integrity 0/250 Matter 193/300 Energy 250/250 System Corruption 2% Temperature Cool (0) Movement Rolling (115) Ox1 Location -10/Subcaves Parts ------- > --- POWER (1) -------- Ion Engine > --- PROPULSION (2) --- Compact Wheel Compact Wheel > --- UTILITY (2) ------ Cooling System High-capacity Storage Unit > --- WEAPON (2) ------- Spread Laser Barrage Gun > --- INVENTORY (20) --- Ion Engine Subdweller Power Source Light Nuclear Core Light Treads Light Treads Aluminum Leg Improved Aluminum Leg Improved Aluminum Leg Improved Aluminum Leg Improved Aluminum Leg Seismic Detector Hacking Suite Spread Laser Spread Laser Subdweller Beam Cannon Subdweller Machine Gun Grenade Launcher Peak State ------------ > --- POWER ------------ Ion Engine > --- PROPULSION ------- Compact Wheel Compact Wheel > --- UTILITY ---------- Cooling System High-capacity Storage Unit > --- WEAPON ----------- Spread Laser Barrage Gun > --- INVENTORY -------- Ion Engine Subdweller Power Source Light Nuclear Core Light Treads Light Treads Aluminum Leg Improved Aluminum Leg Improved Aluminum Leg Improved Aluminum Leg Improved Aluminum Leg Seismic Detector Hacking Suite Spread Laser Spread Laser Subdweller Beam Cannon Subdweller Machine Gun Grenade Launcher [Rating: 14] Favorites ----------- Power Light Ion Engine Engine Light Ion Engine Propulsion Wheel Treads Light Treads Leg Improved Aluminum Leg Wheel Wheel Utility High-capacity Storage Unit Device Seismic Detector Storage High-capacity Storage Unit Protection Light Armor Plating Weapon Spread Laser Energy Gun Spread Laser Energy Cannon Beam Cannon Ballistic Gun Light Assault Rifle Launcher Grenade Launcher Build | -11 -10 -10 ------- Run | Yrd Mat Sub Slots Evolved . | . . . Power . | . . . Propulsion . | . . . Utility . | . . . Weapon . | . . . Parts Attached 34 | 7 24 3 Power 5 | 1 4 . Engine 5 | 1 4 . Core . | . . . Reactor . | . . . Propulsion 14 | 2 12 . Treads 2 | . 2 . Leg 4 | . 4 . Wheel 8 | 2 6 . Hover . | . . . Flight . | . . . Utility 7 | 2 3 2 Device 4 | 1 2 1 Storage 2 | 1 1 . Processor . | . . . Hackware . | . . . Protection 1 | . . 1 Artifact . | . . . Weapon 8 | 2 5 1 Energy Gun 4 | 1 3 . Energy Cannon 1 | . 1 . Ballistic Gun 2 | 1 . 1 Ballistic Cannon . | . . . Launcher 1 | . 1 . Special Weapon . | . . . Impact Weapon . | . . . Slashing Weapon . | . . . Piercing Weapon . | . . . Special Melee Weapon . | . . . Unidentified Prototypes . | . . . Parts Lost 5 | . 1 4 Power 1 | . 1 . Propulsion 2 | . . 2 Utility 1 | . . 1 Weapon 1 | . . 1 Highest Loss Streak 2 | . 1 2 To Critical Strikes . | . . . Average Backups 16 | 4 16 19 Power 2 | . 2 3 Propulsion 7 | 3 8 8 Utility 2 | . 2 3 Weapon 3 | . 3 4 Tool/Special . | . . . Unused Backups 13 | . 3 10 Power 4 | . . 4 Propulsion 3 | . 1 2 Utility 1 | . . 1 Weapon 5 | . 2 3 Tool/Special . | . . . Average Slot Usage (%) 96 | . 95 99 Engine 12 | . 12 14 Leg 1 | . 1 . Wheel 26 | . 26 26 Device 12 | . 12 12 Storage 14 | . 14 14 Energy Gun 26 | . 26 26 Ballistic Gun 1 | . 1 1 Peak Build Rating 14 | 7 13 14 Average Rating 10 | 5 10 12 On Entrance 6 | . 7 13 Avg Prop Armor Cover (%) . | . . . Naked Turns . | . . . Heaviest Build 54 | 11 53 54 Greatest Support 40 | 20 32 40 Greatest Overweight (x) 2 | . 2 1 Average Overweight (x) 1 | . 1 1 Largest Inventory Capacity 20 | 8 20 20 Average Capacity 18 | 7 18 20 Most Carried 20 | 8 20 20 Average Carried 16 | 5 16 18 Final Capacity 20 | 8 20 20 Final Carried 20 | 8 20 17 Class Distribution -------------------- 91% | Mutant 8% | Scavenger-Mutant Dominant Class ---------------- Mutant | -10/Materials Mutant | -10/Subcaves Resources | -11 -10 -10 ----------- Run | Yrd Mat Sub Matter Collected 705 | 273 357 75 Remotely . | . . . Salvage Created 1041 | 146 776 119 Parts 58 | 9 45 4 Haulers Intercepted 2 | . 2 . Recyclers Shooed 1 | . 1 . Parts Field Recycled . | . . . Retrieved Matter . | . . . Parts Self-Destructed 8 | . . 8 Prevented . | . . . Parts Restored . | . . . Kills | -11 -10 -10 ------- Run | Yrd Mat Sub Combat Hostiles Destroyed 16 | . 10 6 Guns 14 | . 10 4 AOE 2 | . . 2 Classes Destroyed 8 | 2 5 1 Tunneler 7 | 4 3 . Hauler 2 | . 2 . Recycler 6 | 1 5 . Operator 1 | . 1 . Watcher 1 | . 1 . Swarmer 5 | . 3 2 Grunt 7 | . 7 . Subdweller 4 | . . 4 Best Kill Streak 5 | 5 3 2 Combat Bots Only 3 | . 3 2 Max Kills in Single Turn 1 | 1 1 1 Gunslinging . | . . . Exploded 1 | . . 1 Melee . | . . . Uniques/NPCs Destroyed . | . . . Combat | -11 -10 -10 -------- Run | Yrd Mat Sub Hostile Shots Fired 88 | . 42 46 Missed 23 | . 8 15 Hits 65 | . 34 31 Projectile 65 | . 34 31 Damage Taken 1164 | . 442 722 Core 253 | . 79 174 Absorbed by Shields . | . . . Core Remaining (%) 100 | 100 . . Volleys Fired 97 | 13 53 31 Largest 2 | 2 2 2 Hottest 130 | 60 130 130 Shots Fired 169 | 16 103 50 Gun 162 | 16 100 46 Cannon . | . . . Launcher 7 | . 3 4 Special . | . . . Kinetic 23 | 3 11 9 Thermal 139 | 13 89 37 Explosive 7 | . 3 4 Electromagnetic . | . . . Robot Hit Streak 14 | 6 14 13 Robot Miss Streak 9 | 1 9 3 Penetration Max . | . . . Secondary Targets 3 | . 2 1 Max Gunslinging Chain 1 | . 1 1 Shots Hit Robots 139 | 12 87 40 Core Hits 126 | 6 96 24 Critical Kills . | . . . Critical Parts Destroyed . | . . . Critical Strikes . | . . . Melee Attacks . | . . . Impact . | . . . Slashing . | . . . Piercing . | . . . Sneak Attacks . | . . . Combat Hostiles . | . . . Follow-up Attacks . | . . . Damage Inflicted 1740 | 131 1108 501 Guns 1479 | 131 1032 316 Cannons . | . . . Explosions 254 | . 69 185 Melee . | . . . Ramming 7 | . 7 . Kinetic 144 | 10 59 75 Thermal 1335 | 121 973 241 Explosive 254 | . 69 185 Electromagnetic . | . . . Impact . | . . . Slashing . | . . . Piercing . | . . . Highest Corruption 2 | . 2 2 Average Corruption 2 | . 2 2 Corruption Purged . | . . . Corruption Blocked . | . . . Effects 30 | . 25 5 Message Errors 7 | . 6 1 Matter Fused 6 | . 5 1 Heat Flow Errors 4 | . 4 . Energy Discharges 1 | . 1 . Parts Fused 1 | . 1 . Data Loss (minor) 4 | . 4 . Data Loss (major) 3 | . 1 2 Misfires 2 | . 1 1 Alerts 1 | . 1 . Weapon Failures 1 | . 1 . Overload Shots . | . . . Overflow Damage 30 | . . 30 Projectiles . | . . . Explosions 30 | . . 30 Melee . | . . . Knockbacks . | . . . Impact . | . . . Kinetic . | . . . Secondary . | . . . Self-Inflicted Damage 34 | . 3 31 Shots 1 | . . 1 Rammed 2 | 1 1 . Targets Rammed 2 | 1 1 . Kicked . | . . . Crushed . | . . . Highest Temperature 276 | 20 276 144 Average Temperature 67 | 15 71 58 Received Heat Transfer 375 | . 225 150 Siege Activations . | . . . Martial Activations . | . . . Shielding Activations . | . . . Robots Disrupted . | . . . Combat Hostiles . | . . . Robots Corrupted . | . . . Combat Hostiles . | . . . Parts Fried . | . . . Impact Corruptions . | . . . Robots Melted . | . . . Combat Hostiles . | . . . Parts Melted 4 | 1 1 2 Heat Transferred 1885 | 275 1300 310 Parts Sabotaged . | . . . Parts Stolen . | . . . Parts Stripped . | . . . Power Chain Reactions . | . . . Alert | -11 -10 -10 ------- Run | Yrd Mat Sub Maximum Alert Level . | . . . Low Security (%) 100 | 100 100 . Level 1 . | . . . Level 2 . | . . . Level 3 . | . . . Level 4 . | . . . Level 5 . | . . . High Security . | . . . Max Security . | . . . Peak Influence 62 | 15 62 . Initial . | . . . Average 17 | 2 18 . Influence Increases 464 | 25 389 50 Destroy 0b10 Robot/C 240 | . 200 40 Destroy 0b10 Robot/NC 85 | 25 60 . Destroy Leader 66 | . 56 10 Successful Hack 37 | . 37 . Destroy Structure 21 | . 21 . Lose Combat Pursuer 15 | . 15 . Influence Decreases 464 | 25 379 60 Entered New Map 6 | . . 6 Time Decay 458 | 25 379 54 Squads Dispatched 2 | . 2 . Investigation . | . . . Extermination . | . . . Reinforcement 2 | . 2 . Assault . | . . . Garrison . | . . . Intercept . | . . . Searches Triggered . | . . . Construction Impeded . | . . . Haulers Reinforced . | . . . Active Scanning Responses . | . . . Cargo Convoy Interrupts . | . . . Stealth | -11 -10 -10 --------- Run | Yrd Mat Sub Distress Signals 2 | . 2 . Communications Jammed . | . . . Distress Signals . | . . . Times Spotted 29 | . 22 7 Peak Tracking Total 4 | . 4 2 Tactical Retreats 1 | . 1 . Traps | -11 -10 -10 ------- Run | Yrd Mat Sub Traps Triggered 1 | . 1 . Indirectly . | . . . Trap Hack Attempts . | . . . Triggered . | . . . Disarmed . | . . . Reprogrammed . | . . . Reused . | . . . Traps Extracted . | . . . Installed . | . . . Triggered . | . . . Machines | -11 -10 -10 ---------- Run | Yrd Mat Sub Machines Disabled . | . . . Max in Single Turn . | . . . Machines Repaired . | . . . Machines Dismantled . | . . . Machines Sabotaged . | . . . Overloaded Fab Kills . | . . . Hacking | -11 -10 -10 --------- Run | Yrd Mat Sub Machines Accessed 5 | . 5 . Terminals 5 | . 5 . Fabricators . | . . . Repair Stations . | . . . Recycling Units . | . . . Scanalyzers . | . . . Garrison Access . | . . . Total Hacks 17 | . 17 . Successful 12 | . 12 . Failed 5 | . 5 . Catastrophic . | . . . Database Lockouts . | . . . Manual 18 | . 18 . Terminals 17 | . 17 . Fabricators . | . . . Repair Stations . | . . . Recycling Units . | . . . Scanalyzers . | . . . Garrison Access . | . . . Terminal Hacks 3 | . 3 . Robot Analysis 2 | . 2 . Prototype ID Bank 1 | . 1 . Fabricator Hacks . | . . . Repair Station Hacks . | . . . Recycling Unit Hacks . | . . . Scanalyzer . | . . . Garrison Access Hacks . | . . . Unauthorized Hacks 9 | . 9 . Terminals 9 | . 9 . Botnet 4 | . 4 . Skim 5 | . 5 . Fabricators . | . . . Repair Stations . | . . . Recycling Units . | . . . Scanalyzers . | . . . Garrison Access . | . . . Data Cores Recovered . | . . . Used . | . . . Hacking Detections 4 | . 4 . Full Trace Events . | . . . Feedback Events . | . . . Feedback Blocked . | . . . Robot Schematics Acquired . | . . . Robots Built . | . . . Authchips . | . . . Time . | . . . Total Robot Build Rating . | . . . Part Schematics Acquired . | . . . Parts Built . | . . . Authchips . | . . . Time . | . . . Total Part Build Rating . | . . . Part Studies Acquired . | . . . Parts Repaired . | . . . Time . | . . . Parts Recycled . | . . . Recycled Matter . | . . . Retrieved Matter . | . . . Retrieved Components . | . . . Parts Scanalyzed . | . . . Part Schematics Acquired . | . . . Parts Damaged . | . . . Bothacking | -11 -10 -10 ------------ Run | Yrd Mat Sub Used RIF Installer . | . . . Robots Hacked . | . . . Non-combat . | . . . Combat . | . . . Robot Hacks Applied . | . . . Relay Couplers Released . | . . . Fabnet Peak Effective % . | . . . Robots Rewired . | . . . Allies Hacked . | . . . Hacks Repelled . | . . . Allies | -11 -10 -10 -------- Run | Yrd Mat Sub Total Allies . | . . . Largest Group . | . . . Highest-Rated Group . | . . . Highest-Rated Ally . | . . . Total Orders . | . . . Ally Attacks . | . . . Total Damage . | . . . Kills . | . . . Allies Corrupted . | . . . Allies Melted . | . . . Intel | -11 -10 -10 ------- Run | Yrd Mat Sub Active Infowar (turns) 861 | 24 500 337 Seismic 861 | 24 500 337 Robot Analysis Total 2 | . 2 . Derelict Logs Recovered . | . . . Drone Launches . | . . . Drone Recoveries . | . . . Exploration | -11 -10 -10 ------------- Run | Yrd Mat Sub Turns Passed 2104 | 103 1575 426 Spaces Moved 1212 | 68 871 273 Core 2 | 2 . . Treads 3 | . . 3 Legs 38 | . 38 . Wheels 1169 | 66 833 270 Hover . | . . . Flight . | . . . Fastest Speed 50 | 50 80 115 Average Speed 107 | 79 107 116 Slowest Speed 260 | 80 260 240 Overloaded Moves . | . . . Propulsion Burnouts . | . . . Robots Hopped . | . . . Potential Cave-ins . | . . . Cave-ins Triggered . | . . . Exploration Rate (%) 38 | 4 93 19 Regions Visited 2 Branch Regions 1 Pre-discovered Areas 1 | . 1 . Known Exits Taken . | . . . Unknown Exits Taken 2 | 1 1 . Scrap Searched . | . . . Spaces Dug . | . . . Terrain Destroyed 35 | . 21 14 Melee . | . . . Projectile . | . . . AOE 35 | . 21 14 Terrain Rammed . | . . . Walls Destroyed . | . . . Machines Disabled . | . . . Actions | -11 -10 -10 --------- Run | Yrd Mat Sub Total 1840 | 98 1411 331 Wait 424 | 2 414 8 Move 1211 | 68 870 273 Hop . | . . . Pick Up 36 | 8 24 4 Fast Attach 13 | 7 6 . Attach 8 | . 3 5 Detach . | . . . Swap 26 | . 19 7 Drop 24 | . 21 3 Fire 97 | 13 53 31 Melee . | . . . Ram 1 | . 1 . Kick . | . . . Crush . | . . . Escape Stasis . | . . . Rewire . | . . . Trap . | . . . Miscellaneous . | . . . Route ------- -11/Scrapyard -10/Materials (discovered 6 exits: [*Mat x3] / [*Min x2] / [*Sub]) -10/Subcaves (discovered 2 exits: Mat / Rec) History --------- Turn | Location | Event 26 | -11/Scrapyard | Discovered new exit (range 15) 104 | -11/Scrapyard | Entered Materials 302 | -10/Materials | Build established: Mutant 489 | -10/Materials | Discovered new exit (range 9) 528 | -10/Materials | Discovered new exit (range 15) 675 | -10/Materials | Discovered new exit (range 3) 680 | -10/Materials | Discovered new exit (range 16) 998 | -10/Materials | Discovered new exit (range 8) 1171 | -10/Materials | Loaded intel: 9 trap records 1172 | -10/Materials | Discovered new exit (range 6) 1226 | -10/Materials | Loaded intel: 10 interactive machine locations 1269 | -10/Materials | Learned location of 2 exits from Materials 1303 | -10/Materials | Learned location of 2 exits from Subcaves 1328 | -10/Materials | Learned 4 Subcaves zone layouts 1363 | -10/Materials | Loaded intel: 2 recycling unit locations 1407 | -10/Materials | Learned location of Mines (-10) 1679 | -10/Materials | Entered Subcaves 1680 | -10/Subcaves | Approached by a straggling Scientist 1680 | -10/Subcaves | Identified exit to Materials 1680 | -10/Subcaves | Identified exit to Recycling 1699 | -10/Subcaves | Shifting Twisted Machinery released Mak. Shrapnel Gun 1717 | -10/Subcaves | Shifting Twisted Machinery released Sub. Power Source 1811 | -10/Subcaves | Shifting Twisted Machinery released Sub. Beam Cannon 1813 | -10/Subcaves | Shifting Twisted Machinery released Flamer 1813 | -10/Subcaves | Shifting Twisted Machinery released Barrage Gun 1845 | -10/Subcaves | Core integrity fell below 50% 2042 | -10/Subcaves | Core integrity fell below 20% 2105 | -10/Subcaves | Core destroyed Last Messages --------------- here" 01935_ System corrupted: FCS attempts to trigger Spread Laser. 01935_ System corrupted: Spread Laser misfires. MX-6JF(c): "I think it's somewhere south of here" 02039_ Spread Laser destroyed. 02049_ Seismic Detector destroyed. 02056_ S1-BDX(R) destroyed. 02057_ Subatomizers dissect the Disposable Heat Sink. 02061_ Acquired 29 matter. 02072_ Subatomizers dissect the Disposable Heat Sink. MX-6JF(c): "I think it's somewhere south of here" 02100_ Sub. Monowheel melted. 02100_ MO-CZ9(R) destroyed. 02105_ Tech Extrapolator violently self-destructs. Map ----- +----------------------------------------------------+ | ?????????????????????????????????????????????????? | | ?????????????????????????????????????????????????? | | ?????????????????????????????????????????????????? | | ?????????????????????????????????????????????????? | | ?????????????????????????????????????????????????? | | ?????????????????????????????????????????????????? | | ?????????????????????????????????????????????????? | | ?????????????????????????????????????????????????? | | ?????????????????????????????????????????????????? | | ?????????????????????????????????????????????????? | | ??????????????????????????# ?????????????????????? | | ?????????????????????????? ?????????????????????? | | ???????????????????????### ?????????????????????? | | ??????????????????????? ?????????????????????? | | ??????????????????????? ?????????????????????? | | ?????????????????????? ?????????????????????? | | ?????????????????????? #?????????????????????? | | ??????????????????????? #?????????????????????? | | ??????????????????????? ##????????????????????? | | ??????????????????????? ?????????????????????? | | ???????????????????????? ?????????????????????? | | ???????????????????????? #?????????????????????? | | ???????????????????????##* #?????????????????????? | | ???????????????????????#!%!##????????????????????? | | ???????????????????????#; #????? ?????????????? | | ???????????????????????##@ #???# " ?????????????? | | ?????????# ????????????# % ##??#"""#?????????????? | | ????????? ##????#### ####" #??????????????? | | ????????# ### ## "##""#??#####????????? | | ???????? " " " " "#### ##???????? | | ???????? " """" " ""# ] ######??? | | ????????# # " #### ##"" """ " ! #??? | | ??????????####???####???# #" " "#[ ###??? | | ????????????????????????# "## " #### ##????? | | ???????????????????????? #### ##??## ##?##### | | ????????????????????????##"??## #??### #### # | | ??????????????????????????#??? #?## # | | ?????????????????????????????## #?# | | ?????????????????????????????? ?# ### ## | | ??????????????????????????????# #?## ##?## ## | | ??????????????????????????????####?# #?## ###? | | ??????????????????????????????## ### ##?# #??? | | ?????????????????????????????## #??# ##?## | | ?????????????????????????????# #??# #?# # | | ?????????????????????????????# # # # #?## ## | | ?????????????????????????????###########??# # | | ??????????????????????????????????????????## ## | | ???????????????????????????????????????????## ##? | | ????????????????????????????????????????????####?? | | ?????????????????????????????????????????????????? | +----------------------------------------------------+ Best States ------------- Heat Dissipation 47 Energy Generation 10 Energy Capacity 250 Matter Stores 300 Matter Capacity 300 Sight Range 16 Terrain Scan Density 10 Armor Coverage 150 Evasion (%) 50 Recoil Reduction 2 Item Schematics ----------------- None Robot Schematics ------------------ None Fabricated ------------ Nothing Repaired ---------- Nothing Studied --------- None Alien Tech Used ----------------- None Achievements -------------- None Challenges ------------ None Game ------ Seed AntigravIonCanceller Manual? 0 Play Time 00:20:34 Cumulative 80.2 hours Start 2025.11.07 @ 09:01:48 End 2025.11.07 @ 09:26:13 Sessions 1 Manual Loads 0 Difficulty Rogue Special Mode None Game No. 72 Rogue 72 Adventurer 0 Explorer 0 Win Type - Total 0 Types 0/0/0/0/0/0/0/0/0/0 Lore% 28 Gallery% 40 Achievement% 29 Wizard Run 0 Options --------- Layout 2 ASCII 0 Keyboard 0 Movement Mouse Keybinds 0 Fullscreen 2 Font 24/Terminus Map View 50x44 Zoom Use 0% Tactical HUD 1 Map Filters NONE Filters NONE Steam 1 RUN: 5ea00468-8e39-467e-acfa-7b2880131592